Cogmind - Beta 15 @@@ ROGUE MODE // 2025.10.10 @ 18:17:19 Player: Sooty Result: Destroyed by H-55 Commando with Gauss Rifle Performance ------------- Evolutions (2) 1000 Regions Visited (4) 800 Robots Destroyed (92) 460 Value Destroyed (2385) 2385 Prototype IDs (3) 60 Alien Tech Used (0) 0 Bonus (182) 182 TOTAL SCORE: 4887 Bonus ------- High Alert Combat Kills 16 Follower Combat Kills 166 Cogmind --------- Core Integrity 0/550 Matter 185/300 Energy 27/100 System Corruption 0% Temperature Cool (0) Movement Walking (120) Location -8/Materials Parts ------- > --- POWER (1) -------- (None) > --- PROPULSION (2) --- Carbon-fiber Leg > --- UTILITY (5) ------ Cooling System Visual Processing Unit > --- WEAPON (3) ------- (None) > --- INVENTORY (5) ---- (None) Peak State ------------ > --- POWER ------------ Light Deuterium Engine > --- PROPULSION ------- Light Treads Light Treads > --- UTILITY ---------- Medium Storage Unit Machine Analyzer Recoil Stabilizer Hardened Light Armor Plating Hardened Light Armor Plating > --- WEAPON ----------- Beam Rifle Beam Rifle Improved Assault Rifle > --- INVENTORY -------- Improved Ion Engine Light Treads Cooling System Visual Processing Unit Shield Generator Particle Cannon Grenade Launcher Plasma Cutter [Rating: 24] Favorites ----------- Power Cooled Ion Engine Engine Cooled Ion Engine Propulsion Light Treads Treads Light Treads Leg Carbon-fiber Leg Utility Medium Storage Unit Device Heat Sink Storage Medium Storage Unit Processor Machine Analyzer Protection Light Armor Plating Weapon Beam Rifle Energy Gun Beam Rifle Energy Cannon Particle Cannon Ballistic Gun Improved Assault Rifle Launcher Grenade Launcher Special Weapon Plasma Cutter Build | -11 -10 -9 -9 -8 ------- Run | Yrd Mat Mat Sto Mat Slots Evolved 4 | . . 2 . 2 Power . | . . . . . Propulsion . | . . . . . Utility 3 | . . 1 . 2 Weapon 1 | . . 1 . . Parts Attached 54 | 4 1 21 16 12 Power 6 | . 1 2 2 1 Engine 6 | . 1 2 2 1 Core . | . . . . . Reactor . | . . . . . Propulsion 15 | 1 . 8 4 2 Treads 14 | 1 . 8 4 1 Leg 1 | . . . . 1 Wheel . | . . . . . Hover . | . . . . . Flight . | . . . . . Utility 20 | 1 . 6 7 6 Device 5 | . . 2 . 3 Storage 3 | 1 . 1 1 . Processor 3 | . . . 1 2 Hackware . | . . . . . Protection 9 | . . 3 5 1 Artifact . | . . . . . Weapon 13 | 2 . 5 3 3 Energy Gun 7 | 2 . 4 1 . Energy Cannon 1 | . . . . 1 Ballistic Gun 3 | . . 1 1 1 Ballistic Cannon . | . . . . . Launcher 1 | . . . . 1 Special Weapon 1 | . . . 1 . Impact Weapon . | . . . . . Slashing Weapon . | . . . . . Piercing Weapon . | . . . . . Special Melee Weapon . | . . . . . Unidentified Prototypes 3 | . . 2 1 . Parts Lost 22 | . . 2 4 16 Power 3 | . . 1 . 2 Propulsion 3 | . . . . 3 Utility 9 | . . 1 4 4 Weapon 7 | . . . . 7 Highest Loss Streak 15 | . . 2 2 15 To Critical Strikes . | . . . . . Average Backups 8 | 2 2 7 9 5 Power . | 1 1 1 . . Propulsion 1 | . 1 1 1 . Utility 1 | . . . 2 2 Weapon 3 | . . 3 5 1 Tool/Special . | . . . . . Unused Backups 7 | . . 3 4 . Power 2 | . . 2 . . Propulsion . | . . . . . Utility . | . . . . . Weapon 5 | . . 1 4 . Tool/Special . | . . . . . Average Slot Usage (%) 92 | . 60 95 98 75 Engine 10 | . 3 10 11 6 Treads 20 | . 14 20 22 12 Device 4 | . . 10 . 2 Storage 10 | . 14 11 11 6 Processor 3 | . . . 4 13 Protection 12 | . . 9 16 12 Energy Gun 23 | . 28 26 21 11 Ballistic Gun 7 | . . 5 9 6 Peak Build Rating 24 | 4 5 17 18 24 Average Rating 14 | 3 4 13 15 17 On Entrance 8 | . 4 5 16 18 Naked Turns . | . . . . . Heaviest Build 36 | 9 12 31 33 36 Greatest Support 43 | 20 20 43 40 40 Greatest Overweight (x) 2 | . . . . 2 Average Overweight (x) . | . . . . . Largest Inventory Capacity 10 | 8 8 10 10 10 Average Capacity 9 | 7 8 9 10 8 Most Carried 10 | 3 3 10 10 9 Average Carried 8 | 2 2 7 9 5 Final Capacity 10 | 8 8 10 10 5 Final Carried 10 | 3 3 10 9 . Class Distribution -------------------- 44% | Scavenger-Tank 20% | Tank 12% | Commander-Tank 11% | Mutant 5% | Scavenger-Mutant 4% | Gunner Dominant Class ---------------- Mutant | -10/Materials Tank | -9/Materials Scavenger-Tank | -9/Storage Scavenger-Tank | -8/Materials Resources | -11 -10 -9 -9 -8 ----------- Run | Yrd Mat Mat Sto Mat Matter Collected 1079 | 240 . 257 356 226 Remotely . | . . . . . Salvage Created 3235 | 195 69 1289 1243 439 Parts 184 | 12 7 64 79 22 Haulers Intercepted 3 | . . 1 2 . Recyclers Shooed 1 | . . . 1 . Parts Field Recycled . | . . . . . Retrieved Matter . | . . . . . Parts Self-Destructed . | . . . . . Prevented . | . . . . . Kills | -11 -10 -9 -9 -8 ------- Run | Yrd Mat Mat Sto Mat Combat Hostiles Destroyed 65 | . 1 31 23 10 Guns 58 | . 1 30 22 5 Cannons 1 | . . . . 1 AOE 4 | . . . . 4 Classes Destroyed 14 | 3 2 5 1 3 Worker 8 | 2 1 2 2 1 Builder 3 | . 1 . 1 1 Tunneler 3 | 3 . . . . Hauler 3 | . . 1 2 . Recycler 3 | 1 . 1 1 . Mechanic 1 | . . 1 . . Operator 1 | . . . . 1 Watcher 5 | . . 3 1 1 Swarmer 17 | . . 13 4 . Grunt 27 | . 1 9 9 8 Brawler 1 | . . . 1 . Sentry 18 | . . 9 9 . Demolisher 1 | . . . . 1 Hunter 1 | . . . . 1 Best Kill Streak 6 | 6 1 6 6 4 Combat Bots Only 4 | . 1 4 4 3 Max Kills in Single Turn 2 | 1 1 2 2 2 Gunslinging 1 | . . 1 1 . Exploded 2 | . . . . 2 Melee . | . . . . . Uniques/NPCs Destroyed . | . . . . . Combat | -11 -10 -9 -9 -8 -------- Run | Yrd Mat Mat Sto Mat Hostile Shots Fired 459 | . 4 151 115 189 Missed 137 | . 2 39 38 58 Hits 322 | . 2 112 77 131 Projectile 322 | . 2 112 77 131 AOE 9 | . . . . 9 Critical Strikes 7 | . . 1 1 5 Damage Taken 4485 | . 24 1347 1005 2109 Core 903 | . . 196 137 570 Absorbed by Shields 54 | . . . . 54 Redirected to Shielding 40 | . . 40 . . Core Remaining (%) 72 | 100 100 . 16 . Volleys Fired 208 | 10 7 89 62 40 Largest 3 | 2 2 3 3 3 Hottest 156 | 100 100 156 135 135 Shots Fired 526 | 20 14 258 166 68 Gun 518 | 20 14 258 165 61 Cannon 1 | . . . . 1 Launcher 4 | . . . . 4 Special 3 | . . . 1 2 Kinetic 117 | . . 35 50 32 Thermal 405 | 20 14 223 116 32 Explosive 4 | . . . . 4 Electromagnetic . | . . . . . Robot Hit Streak 35 | 5 3 12 35 13 Robot Miss Streak 7 | 1 2 7 7 2 Penetration Max 1 | . . . . 1 Secondary Targets 8 | . . 5 3 . Max Gunslinging Chain 1 | . . 1 1 . Shots Hit Robots 321 | 11 8 152 105 45 Core Hits 147 | 7 4 60 46 30 Critical Kills . | . . . . . Critical Parts Destroyed 1 | . . . 1 . Critical Strikes 26 | 1 . 12 9 4 Burn 25 | 1 . 12 8 4 Destroy 1 | . . . 1 . Melee Attacks . | . . . . . Impact . | . . . . . Slashing . | . . . . . Piercing . | . . . . . Sneak Attacks . | . . . . . Combat Hostiles . | . . . . . Follow-up Attacks . | . . . . . Damage Inflicted 5645 | 154 112 2086 1587 1706 Guns 4560 | 154 112 2074 1577 643 Cannons 20 | . . . . 20 Explosions 1019 | . . . . 1019 Melee . | . . . . . Ramming 26 | . . 12 10 4 Kinetic 969 | . . 244 375 350 Thermal 4237 | 154 112 1830 1202 939 Explosive 413 | . . . . 413 Electromagnetic . | . . . . . Impact . | . . . . . Slashing . | . . . . . Piercing . | . . . . . Highest Corruption 4 | . . . 4 . Average Corruption 3 | . . . 3 . Corruption Purged . | . . . . . Corruption Blocked . | . . . . . Effects 8 | . . . 8 . Message Errors 1 | . . . 1 . Matter Fused 3 | . . . 3 . Energy Discharges 3 | . . . 3 . Weapon Failures 1 | . . . 1 . Overload Shots . | . . . . . Overflow Damage 37 | . . . . 37 Projectiles . | . . . . . Explosions 37 | . . . . 37 Melee . | . . . . . Knockbacks . | . . . . . Impact . | . . . . . Kinetic . | . . . . . Secondary . | . . . . . Self-Inflicted Damage 2 | . . . . 2 Shots 1 | . . . . 1 Rammed 5 | . . 1 3 1 Targets Rammed 6 | . . 1 3 2 Kicked 1 | . . . . 1 Crushed . | . . . . . Highest Temperature 411 | 144 84 323 405 411 Average Temperature 119 | 59 39 87 129 189 Received Heat Transfer 1459 | . 12 354 318 775 Effects 17 | . . 5 7 5 Shutdowns 1 | . . . . 1 Energy Bleed 1 | . . . 1 . Interference 11 | . . 5 6 . Matter Decay 2 | . . . . 2 Short Circuit 1 | . . . . 1 Damage (major) 1 | . . . . 1 Siege Activations . | . . . . . Martial Activations . | . . . . . Shielding Activations . | . . . . . Robots Disrupted . | . . . . . Combat Hostiles . | . . . . . Robots Corrupted . | . . . . . Combat Hostiles . | . . . . . Parts Fried . | . . . . . Impact Corruptions . | . . . . . Robots Melted 2 | . . 1 1 . Combat Hostiles 2 | . . 1 1 . Parts Melted 36 | . . 21 13 2 Heat Transferred 11870 | 518 333 5809 3663 1547 Parts Sabotaged . | . . . . . Parts Stolen . | . . . . . Parts Stripped . | . . . . . Power Chain Reactions . | . . . . . Alert | -11 -10 -9 -9 -8 ------- Run | Yrd Mat Mat Sto Mat Maximum Alert Level 2 | . . 1 2 1 Low Security (%) 62 | 100 100 45 63 94 Level 1 31 | . . 54 21 5 Level 2 6 | . . . 14 . Level 3 . | . . . . . Level 4 . | . . . . . Level 5 . | . . . . . High Security . | . . . . . Max Security . | . . . . . Peak Influence 509 | 10 30 352 509 204 Initial 204 | . 6 . 118 204 Average 179 | 2 5 185 226 104 Influence Increases 2339 | 30 40 940 974 355 Destroy 0b10 Robot/C 1420 | . 20 620 580 200 Destroy 0b10 Robot/NC 140 | 30 10 40 35 25 Destroy Leader 398 | . 10 178 166 44 Allied During Kill 97 | . . . 86 11 Successful Hack 30 | . . 4 26 . Disable Machine 60 | . . 15 15 30 Destroy Structure 29 | . . 8 6 15 Partial Spotted 15 | . . . . 15 Lose Combat Pursuer 150 | . . 75 60 15 Influence Decreases 2270 | 20 50 658 770 772 Entered New Map 450 | . 4 . 164 282 Time Decay 1270 | 20 46 488 526 190 Lost Part 220 | . . 20 40 160 Lost Ally 180 | . . . 40 140 Purge Threat 150 | . . 150 . . Squads Dispatched 13 | . 1 4 3 5 Investigation 6 | . 1 2 3 . Extermination . | . . . . . Reinforcement 4 | . . 2 . 2 Assault . | . . . . . Garrison 3 | . . . . 3 Intercept . | . . . . . Searches Triggered . | . . . . . Construction Impeded 1 | . . . . 1 Haulers Reinforced . | . . . . . Active Scanning Responses . | . . . . . Cargo Convoy Interrupts . | . . . . . Stealth | -11 -10 -9 -9 -8 --------- Run | Yrd Mat Mat Sto Mat Distress Signals 5 | . . 4 1 . Communications Jammed . | . . . . . Distress Signals . | . . . . . Times Spotted 104 | . 2 47 35 20 Peak Tracking Total 6 | . 1 5 5 6 Tactical Retreats 9 | . . 4 4 1 Traps | -11 -10 -9 -9 -8 ------- Run | Yrd Mat Mat Sto Mat Traps Triggered 7 | . 1 2 4 . Indirectly . | . . . . . Trap Hack Attempts . | . . . . . Triggered . | . . . . . Disarmed . | . . . . . Reprogrammed . | . . . . . Reused . | . . . . . Traps Extracted . | . . . . . Installed . | . . . . . Triggered . | . . . . . Machines | -11 -10 -9 -9 -8 ---------- Run | Yrd Mat Mat Sto Mat Machines Disabled 4 | . . 1 1 2 Max in Single Turn 1 | . . 1 1 1 Machines Repaired . | . . . . . Machines Dismantled 1 | . . . 1 . Machines Sabotaged . | . . . . . Overloaded Fab Kills . | . . . . . Hacking | -11 -10 -9 -9 -8 --------- Run | Yrd Mat Mat Sto Mat Machines Accessed 12 | . . 3 8 1 Terminals 10 | . . 3 6 1 Fabricators . | . . . . . Repair Stations . | . . . . . Recycling Units 1 | . . . 1 . Scanalyzers . | . . . . . Garrison Access 1 | . . . 1 . Total Hacks 36 | . . 11 23 2 Successful 15 | . . 6 9 . Failed 21 | . . 5 14 2 Catastrophic 3 | . . . 3 . Database Lockouts . | . . . . . Manual 1 | . . . 1 . Terminals 31 | . . 11 18 2 Fabricators . | . . . . . Repair Stations . | . . . . . Recycling Units 3 | . . . 3 . Scanalyzers . | . . . . . Garrison Access 2 | . . . 2 . Terminal Hacks 12 | . . 6 6 . Record 6 | . . 3 3 . Part Schematic 1 | . . . 1 . Open Door 1 | . . . 1 . Branch Access Points 1 | . . . 1 . Alert Level 1 | . . 1 . . Unreport Threat 1 | . . 1 . . Locate Traps 1 | . . 1 . . Fabricator Hacks . | . . . . . Repair Station Hacks . | . . . . . Recycling Unit Hacks 2 | . . . 2 . Process 1 | . . . 1 . Report Inventory 1 | . . . 1 . Scanalyzer . | . . . . . Garrison Access Hacks 1 | . . . 1 . Coupler Status 1 | . . . 1 . Unauthorized Hacks . | . . . . . Terminals . | . . . . . Fabricators . | . . . . . Repair Stations . | . . . . . Recycling Units . | . . . . . Scanalyzers . | . . . . . Garrison Access . | . . . . . Data Cores Recovered . | . . . . . Used . | . . . . . Hacking Detections 12 | . . 2 9 1 Full Trace Events 5 | . . . 5 . Feedback Events . | . . . . . Feedback Blocked . | . . . . . Robot Schematics Acquired . | . . . . . Robots Built . | . . . . . Authchips . | . . . . . Time . | . . . . . Total Robot Build Rating . | . . . . . Part Schematics Acquired 1 | . . . 1 . Parts Built . | . . . . . Authchips . | . . . . . Time . | . . . . . Total Part Build Rating . | . . . . . Parts Repaired . | . . . . . Time . | . . . . . Parts Recycled . | . . . . . Recycled Matter 241 | . . . 241 . Retrieved Matter . | . . . . . Retrieved Components . | . . . . . Parts Scanalyzed . | . . . . . Part Schematics Acquired . | . . . . . Parts Damaged . | . . . . . Bothacking | -11 -10 -9 -9 -8 ------------ Run | Yrd Mat Mat Sto Mat Used RIF Installer . | . . . . . Robots Hacked . | . . . . . Non-combat . | . . . . . Combat . | . . . . . Robot Hacks Applied . | . . . . . Relay Couplers Released . | . . . . . Fabnet Peak Effective % . | . . . . . Robots Rewired . | . . . . . Allies Hacked . | . . . . . Hacks Repelled . | . . . . . Allies | -11 -10 -9 -9 -8 -------- Run | Yrd Mat Mat Sto Mat Total Allies 10 | . . . 10 . Largest Group 10 | . . . 10 7 Highest-Rated Group 88 | . . . 88 64 Highest-Rated Ally 16 | . . . 16 16 Total Orders . | . . . . . Ally Attacks 70 | . . . 40 30 Total Damage 576 | . . . 313 263 Kills 8 | . . . 7 1 Allies Corrupted . | . . . . . Allies Melted . | . . . . . Intel | -11 -10 -9 -9 -8 ------- Run | Yrd Mat Mat Sto Mat Active Infowar (turns) 943 | . . . 559 384 Optics 86 | . . . . 86 Machine Analysis 857 | . . . 559 298 Robot Analysis Total . | . . . . . Derelict Logs Recovered . | . . . . . Drone Launches . | . . . . . Drone Recoveries . | . . . . . Exploration | -11 -10 -9 -9 -8 ------------- Run | Yrd Mat Mat Sto Mat Turns Passed 3571 | 112 170 1430 1475 384 Spaces Moved 1606 | 43 92 632 681 158 Core 29 | 6 . . . 23 Treads 1558 | 37 92 632 681 116 Legs 19 | . . . . 19 Wheels . | . . . . . Hover . | . . . . . Flight . | . . . . . Fastest Speed 50 | 50 160 160 160 50 Average Speed 158 | 144 160 160 160 147 Slowest Speed 240 | 160 160 160 160 240 Overloaded Moves . | . . . . . Propulsion Burnouts . | . . . . . Robots Hopped . | . . . . . Potential Cave-ins . | . . . . . Cave-ins Triggered . | . . . . . Exploration Rate (%) 39 | 3 27 67 86 14 Regions Visited 4 Branch Regions 1 Pre-discovered Areas . | . . . . . Known Exits Taken . | . . . . . Unknown Exits Taken 4 | 1 1 1 1 . Scrap Searched . | . . . . . Spaces Dug . | . . . . . Terrain Destroyed 24 | . . . . 24 Melee . | . . . . . Projectile 1 | . . . . 1 AOE 23 | . . . . 23 Terrain Rammed . | . . . . . Walls Destroyed . | . . . . . Machines Disabled . | . . . . . Actions | -11 -10 -9 -9 -8 --------- Run | Yrd Mat Mat Sto Mat Total 2207 | 73 101 858 926 249 Wait 246 | 10 1 70 138 27 Move 1602 | 42 91 631 680 158 Hop . | . . . . . Pick Up 46 | 7 1 27 7 4 Fast Attach 6 | . . 1 5 . Attach 26 | 4 1 7 1 13 Detach . | . . . . . Swap 27 | . . 14 11 2 Drop 36 | . . 18 15 3 Fire 208 | 10 7 89 62 40 Melee . | . . . . . Ram 1 | . . . . 1 Kick 1 | . . . . 1 Crush 4 | . . 1 3 . Escape Stasis . | . . . . . Rewire . | . . . . . Trap . | . . . . . Miscellaneous 4 | . . . 4 . Route ------- -11/Scrapyard -10/Materials (discovered 2 exits: *Mat / [*Min]) -9/Materials (discovered 2 exits: *Mat / *Sto) -9/Storage (discovered 2 exits: *Mat / Rec) -8/Materials History --------- Turn | Location | Event 36 | -11/Scrapyard | Discovered new exit (range 16) 113 | -11/Scrapyard | Entered Materials 185 | -10/Materials | Discovered new exit (range 15) 217 | -10/Materials | Discovered new exit (range 15) 283 | -10/Materials | Entered another Materials area 283 | -9/Materials | Evolved 2 slots: Utility x1, Weapon x1 303 | -9/Materials | Build established: Mutant 774 | -9/Materials | Build established: Tank 1510 | -9/Materials | Build established: Scavenger-Tank 1695 | -9/Materials | Discovered new exit (range 8) 1705 | -9/Materials | Discovered new exit (range 16) 1713 | -9/Materials | Entered Storage 1778 | -9/Storage | Core integrity fell below 50% 2741 | -9/Storage | Core integrity fell below 20% 2861 | -9/Storage | Assisted by bots powering up and referring to "LRC-V3" 2915 | -9/Storage | Identified exit to Recycling 3170 | -9/Storage | Build established: Commander-Tank 3175 | -9/Storage | Discovered new exit (range 6) 3188 | -9/Storage | Entered Materials 3188 | -8/Materials | Accompanied by 7 allies 3188 | -8/Materials | Evolved 2 slots: Utility x2 3335 | -8/Materials | Garrison activated, responded to threat 3387 | -8/Materials | Lost 5 allies 3509 | -8/Materials | Core integrity fell below 50% 3533 | -8/Materials | Lost 15 parts (2p3n4u6w) 3539 | -8/Materials | Core integrity fell below 20% 3572 | -8/Materials | Destroyed by H-55 Commando with Gauss Rifle Last Messages --------------- 03546_ Acquired 49 matter. 03547_ Acquired Carbon-fiber Leg. 03547_ Penetrated by Slug. 03552_ Slug penetrates K-01 Serf. 03553_ A-02 Transporter suffers critical hit (Burn). 03553_ U-05 Engineer lays Concrete. 03554_ K-01 Serf collects debris. 03554_ R-06 Scavenger collects Imp. Heat Sink. 03554_ U-05 Engineer lays Concrete. 03556_ Slug penetrates Wall. 03556_ U-05 Engineer lays Concrete. 03557_ U-05 Engineer builds a Wall. 03562_ U-05 Engineer lays Concrete. 03565_ K-01 Serf collects debris. 03567_ U-05 Engineer lays Concrete. 03568_ K-01 Serf collects debris. 03569_ U-05 Engineer lays Concrete. 03572_ Kicked A-02 Transporter out of the way. 03572_ Penetrated by Slug. Map ----- +----------------------------------------------------+ | ????????????????# ????????????? | | ????????????????# ????????????? | | ????????###+????# ????????????? | | ???????? ##### #???????????? | | ??????? ^* ?????####### | | ???????? ^% ?????# # | | ???????""" = ?##### """ # | | ???????""" ## + """ # | | ???????""" ## # """ # | | ???????""" ! ## # # | | ????? """ !! # """ # | | ???? !! + """ # | | ???? ! ! # """ # | | ????????# ## # | | ????????###+##### ## =# | | ????????????????# T# ] # | | ???????"S???????# ## ] # | | ???????"""??"""?# % ##+##### | | ????????""??"""?# = #???? | | ????????????"""?# #### #???? | | ????????????????# #??# #???? | | ????????????????# #??# #???? | | ????????????????# #??#### #???? | | ############+####/####??# #???? | | # #??#a#???? | | # ####@##### | | ??? # ## # | | ??????????# / ## # | | ??????????# # ## # | | ??????????# # ## # | | ??????????# ######### # | | ??????????# #???# # | | ??????????# #???# # | | ??????????# #???# # | | ??????????#########???# a # | | ??????????????????????# gg # | | ???"""?????############ # | | ???"""?????# # ## #g###h# # | | ???"""??????# # ## ## # | | ??????????#### # =# # # | | ???"""????# [ #= # # | | ???"""????#% %[ # ### | | ???"""????# " " ##? | | ??????????# "!% #? | | ??????????# ! #? | | ??????????# " ! "#? | | ??????????# ! "*= "#? | | ??????????# %%% % " "#? | | ??????????# = * " % #? | | ??????????#########" #? | +----------------------------------------------------+ Best States ------------- Heat Dissipation 53 Energy Generation 14 Energy Capacity 280 Matter Stores 300 Matter Capacity 300 Sight Range 18 Terrain Scan Density 10 Armor Coverage 300 Weapon Shielding 33 Evasion (%) 55 Targeting Accuracy 6 Recoil Reduction 6 Item Schematics ----------------- Flak Cannon | -9/Storage | Hacked Robot Schematics ------------------ None Fabricated ------------ Nothing Repaired ---------- Nothing Alien Tech Used ----------------- None Achievements -------------- Novice Programmer Challenges ------------ None Game ------ Seed SchematicVisualSuite Manual? 0 Play Time 00:50:16 Cumulative 20.8 hours Start 2025.10.10 @ 17:26:52 End 2025.10.10 @ 18:17:19 Sessions 1 Manual Loads 0 Difficulty Rogue Special Mode None Game No. 25 Rogue 25 Adventurer 0 Explorer 0 Win Type - Total 0 Types 0/0/0/0/0/0/0/0/0/0 Lore% 12 Gallery% 21 Achievement% 19 Wizard Run 0 Options --------- Layout 1 ASCII 0 Keyboard 0 Movement Mouse Keybinds 0 Fullscreen 1 Font 24/Terminus Map View 50x35 Zoom Use 0% Tactical HUD 1 Map Filters NONE Filters NONE Steam 1 RUN: 1ec99609-9405-433d-8cee-53e24e6fc828